{"text_format":"3","workbook":"xlsx","n_sheets":14,"sheets":["COVER PAGE","PREAMBLE METHOD OF MEASUREMENT","SUMMARY PAGE","PRELIMINARIES & GENERAL","ALTERATIONS","EARTHWORKS","CONCRETE","EARTHMAT","CABLE TRENCH,DUCTS,RAMPS","STRUCTURAL STEEL","PRIMARY PLANT","TUBULAR BUSBAR","CLAMPS,CONDUCTORS,HARDWARE","CABLING"],"not_rendered":{"images":5,"external_links":1,"defined_names":13},"read":"whole","date_system":"1900"}

{"sheet":"COVER PAGE","index":0,"n_rows":41,"n_cols":3,"rows_kept":41,"merged":[[1,1,1,2]]}
[]
[null,"ESSELEN-JUPITER 88KV FEEDER BYPASS"]
[]
[]
[]
[null,"PRICING INFORMATION"]
[]
[null,"REQUEST FOR PROPOSAL"]
[]
[null,"ENQUIRY No."]
[]
[null,"NAME OF PACKAGE:","ESSELEN-88KV EMERGENCY BYPASS-ELECTRICAL STRINGING,CABLING & CIVIL WORKS"]
[]
[null,"TENDERER’S NAME:  "]
[]
[null,"CATEGORY OF OFFER (MAIN/ALTERNATIVE OFFER):","Main Offer "]
[]
[null,"TENDERED PRICE:  IN ZAR"]
[null,"(excluding VAT)"]
[]
[null,"RAND VALUE IN WORDS","[Price in Words]"]
[null,"(Including VAT)"]
[]
[]
[]
[null,"TENDERED PRICE:  IN ZAR"]
[null,"(including VAT)"]
[]
[null,"DATE :"]
[]
[]
[]
[null,"FULL NAMES OF SIGNATORY:"]
[]
[]
[]
[null,"DESIGNATION OF SIGNATORY:"]
[]
[]
[]
[null,"SIGNATURE :"]

{"sheet":"PREAMBLE METHOD OF MEASUREMENT","index":1,"n_rows":6,"n_cols":2,"rows_kept":6}
[]
[null,"Preambles-Method of measurement"]
[1,"The quantities inserted below are provisional and are based on best information available at the time of compiling this Bills of Quantities (BOQ) and as such the Works shall be subject to re-measurement."]
[2,"Unless otherwise stated; the Rate / Price shall include for the supply, delivery and installation of all associated components."]
[3,"Where applicable, formally receive within the laydown area free issue: conductor, hardware, spacers and clamps from the Project Manager."]
[4,"Tempering with the BOQ is strictly prohibited "]

{"sheet":"SUMMARY PAGE","index":2,"n_rows":35,"n_cols":7,"rows_kept":35,"merged":[[2,3,2,5],[3,1,3,2],[3,3,3,5],[9,1,9,5],[32,1,32,3],[33,1,33,2]]}
[]
[null,"EMPLOYER:",null,"ESKOM-NTCSA"]
[null,"PROJECT NAME:",null,"ESSELEN EMERGENCY BYPASS"]
[null,"PROJECT LOCATION:",null,"ESSELEN SUBSTATION"]
[]
[]
[null,"CONTRACT DETAILS:",null,{"$f":"'[1]Cover Page'!D8","v":"NEC3 ECC: PRICING OPTION B"}]
[]
[]
[null,"DESCRIPTION",{"$nulls":4},"AMOUNTS"]
[]
[null,{"$f":"IF(C12<>\"\",1,\"\")","v":1},"PRELIMINARY AND GENERAL",{"$nulls":3},{"$f":"'PRELIMINARIES & GENERAL'!G140","v":0}]
[]
[null,2,"ALTERATIONS",{"$nulls":3},{"$f":"ALTERATIONS!G22","v":0}]
[]
[null,3,"EARTHWORKS",{"$nulls":3},{"$f":"EARTHWORKS!G61","v":0}]
[]
[null,4,"CONCRETE",{"$nulls":3},{"$f":"CONCRETE!G50","v":0}]
[]
[null,5,"EARTHMAT",{"$nulls":3},{"$f":"EARTHMAT!G29","v":0}]
[]
[null,6,"CABLE TRENCH,DUCTS,RAMPS",{"$nulls":3},{"$f":"'CABLE TRENCH,DUCTS,RAMPS'!H22","v":0}]
[]
[null,7,"STRUCTURAL STEEL",{"$nulls":3},{"$f":"'STRUCTURAL STEEL'!G37","v":0}]
[]
[null,8,"PRIMARY PLANT",{"$nulls":3},{"$f":"'PRIMARY PLANT'!G42","v":0}]
[]
[null,9,"TUBULAR BUSBAR",{"$nulls":3},{"$f":"'TUBULAR BUSBAR'!F118","v":0}]
[]
[null,10,"CLAMPS,CONDUCTORS,HARDWARE",{"$nulls":3},{"$f":"'CLAMPS,CONDUCTORS,HARDWARE'!$F$141","v":0}]
[]
[null,11,"CABLING",{"$nulls":3},{"$f":"CABLING!F23","v":0}]
[null,"SUB-TOTAL",{"$nulls":4},{"$f":"SUM(G12:G32)","v":0}]
[null,"VALUE ADDED TAX",null,{"v":0.15,"d":"15%"},null,null,{"$f":"G33*15%","v":0}]
[null,"ESTIMATED FINAL CONSTRUCTION COST WITH VAT @15%",{"$nulls":4},{"$f":"G33+G34","v":0}]

{"sheet":"PRELIMINARIES & GENERAL","index":3,"n_rows":140,"n_cols":7,"rows_kept":140,"merged":[[0,0,3,1],[0,2,0,6],[1,2,1,6],[2,2,3,6],[138,0,140,5]]}
[null,null,"ESKOM NTCSA"]
[null,null,"ESSELEN-88KV EMERGENCY BYPASS"]
[null,null,"ESSELEN SUBSTATION"]
[]
["ITEM","REFERENCE","DESCRIPTION","UNIT","QUANTITY","RATE","AMOUNT"]
[]
[null,null,"SECTION NO. 1"]
[]
[null,"SABS 1200A","PRELIMINARY AND GENERAL "]
[]
[null,null,"(Applicable to the whole of the Works) "]
[]
[null,"8.3","FIXED CHARGE ITEMS "]
[]
[1,"8.3.1","Contractual requirements. ","Sum",1,null,{"$f":"E15*F15","v":0}]
[null,"8.3.2","Establishment of Facilities on the Site "]
[]
[2,"8.3.2","Facilities for Engineer:"]
[]
[3,"8.3.2.1c","Name boards (In No. 2)","Sum",1,null,{"$f":"E20*F20","v":0}]
[]
[4,"8.3.2.2","Facilities for Contractor :"]
[]
[5,"8.3.2.2a","Offices and storage sheds.","Sum",1,null,0]
[]
[6,"8.3.2.2b","Workshops. ","Sum",1,null,0]
[]
[7,"8.3.2.2c","Laboratories. ","Sum",1,null,0]
[]
[8,"8.3.2.2d","Living accommodation. ","Sum",1,null,0]
[]
[9,"8.3.2.2e","Ablution and latrine facilities (chemical portable toilets to be well maintained / serviced for the entire duration of the contract).","Sum",1,null,0]
[]
[10,"8.3.2.2f","Tools and equipment. ","Sum",1,null,0]
[]
[11,"8.3.2.2g","Water supplies, electric power, compressed air supply and communications (all to be available from beginning of contract and for entire duration of the contract).","Sum",1,null,0]
[]
[12,"8.3.2.2h","Dealing with water."]
[]
[null,null,"The Contractor is to ALLOW for all necessary dewatering for the entire duration of the contract, or as deemed necessary to complete this contract successfully. The price is to include for all piping, pumps, discharging of water into suitable outlet points, standby generator/s, etc., complete.","Sum",1,null,0]
[]
[13,"8.3.2.2i","Access to the site.","Sum",1,null,0]
[]
[14,"8.3.2.2j","Plant. ","Sum",1,null,0]
[]
[]
[15,"8.3.3","Other fixed charge obligations",{"$nulls":3},0]
[]
[16,"8.3.4","Removal of site establishment","Sum",1,null,0]
[]
[17,"8.3.3","Complying with Health and Safety Specifications","Sum",1,null,0]
[]
[18,"8.3.3","Complying with Environmental Management Programme Act and all other statutory environmental requirements","Sum",1,null,0]
[]
[19,"8.3.3","Security for the works for the duration of the contract","Sum",1,null,0]
[]
[null,"8.4","TIME RELATED ITEMS"]
[]
[20,"8.4.1","Contractual requirements","Sum",1,null,0]
[]
[null,"8.4.2","Operation and Maintenance of Facilities on Site, for the Duration of Construction, (Unless otherwise stated)"]
[]
[null,"8.4.2.1","Facilities for the Engineer:"]
[]
[21,"8.4.2.1c","Name boards (In No. 2)","Sum",1,null,0]
[]
[null,"8.4.2.2","Facilities for Contractor:"]
[]
[22,"8.4.2.2a","Offices and storage sheds.","Sum",1,null,0]
[]
[]
[23,"8.4.2.2b","Workshops. ","Sum",1,null,0]
[]
[24,"8.4.2.2c","Laboratories. ","Sum",1,null,0]
[]
[25,"8.4.2.2d","Living accommodation. ","Sum",1,null,0]
[]
[26,"8.4.2.2e","Ablution and latrine facilities (chemical portable toilets to be well maintained / serviced for the entire duration of the contract).","Sum",1,null,{"$f":"E78*F78","v":0}]
[]
[27,"8.4.2.2f","Tools and equipment. ","Sum",1,null,0]
[]
[28,"8.4.2.2g","Water supplies, electric power, compressed air supply and communications (all to be available from beginning of contract and for entire duration of the contract).","Sum",1,null,0]
[]
[null,"8.4.2.2h","Dealing with water."]
[]
[29,null,"The Contractor is to ALLOW for all necessary dewatering for the entire duration of the contract, or as deemed necessary to complete this contract successfully. The price is to include for all piping, pumps, discharging of water into suitable outlet points, standby generator/s, etc., complete.","Sum",1,null,0]
[]
[30,"8.4.2.2i","Access to the site.","Sum",1,null,0]
[]
[31,"8.4.2.2j","Plant. ","Sum",1,null,0]
[]
[]
[32,"8.4.3","Supervision for duration of construction","Sum",1,null,0]
[]
[33,"8.4.3","Complying with Health and Safety Specifications","Sum",1,null,0]
[]
[34,"8.4.4","Complying with head office overhead costs for duration of construction","Sum",1,null,0]
[]
[35,"8.4.5","Other time related obligations"]
[]
[36,"8.4.5","Complying with Environmental Management Programme Act and all other statutory environmental requirements","Sum",1,null,0]
[]
[37,"8.4.5","Security for the works for the duration of the contract","Sum",1,null,0]
[]
[null,"8.7","DAYWORK"]
[]
[38,"8.8.4a","Existing Services"]
[]
[39,"8.8.4a","Supply or hire of specialist equipment for the detection of a particular service","Sum",1,null,0]
[]
[40,"8.8.4b","The use of equipment referred to in (a) above","Sum",1,null,0]
[]
[41,"8.8.4c","Excavation by hand in soft material to expose unknown services","m³",1,null,0]
[]
[42,"8.8.4d","Temporary protection, as required in terms of the project specification and as directed by the Engineer","Sum",1,null,{"$f":"+E115*F115","v":0}]
[]
[null,"8.7","DAYWORK (PROVISIONAL)"]
[]
[null,null,"Site Return and Transporting of Equipment (Hourly Rate)"]
[]
[43,null,"Supervisor","Hour",null,null,{"$f":"IFERROR(IF(E121>0,((F121)*E121),\"Rate Only\"),\"\")","v":"Rate Only"}]
[]
[44,null,"Artisan","Hour",null,null,{"$f":"IFERROR(IF(E123>0,((F123)*E123),\"Rate Only\"),\"\")","v":"Rate Only"}]
[]
[45,null,"Skilled Labour","Hour",null,null,{"$f":"IFERROR(IF(E125>0,((F125)*E125),\"Rate Only\"),\"\")","v":"Rate Only"}]
[]
[46,null,"Driver","Hour",null,null,{"$f":"IFERROR(IF(E127>0,((F127)*E127),\"Rate Only\"),\"\")","v":"Rate Only"}]
[]
[47,null,"1 Ton Truck (with a cherry picker)","km",null,null,{"$f":"IFERROR(IF(E129>0,((F129)*E129),\"Rate Only\"),\"\")","v":"Rate Only"}]
[]
[48,null,"8 Ton Crane Truck","Hour",null,null,{"$f":"IFERROR(IF(E131>0,((F131)*E131),\"Rate Only\"),\"\")","v":"Rate Only"}]
[]
[49,null,"20 Ton Crane Truck (reach of 20m high)","Hour",null,null,{"$f":"IFERROR(IF(E133>0,((F133)*E133),\"Rate Only\"),\"\")","v":"Rate Only"}]
[]
[50,null,"4 x 4 LDV","km",null,null,{"$f":"IFERROR(IF(E135>0,((F135)*E135),\"Rate Only\"),\"\")","v":"Rate Only"}]
[]
[null,null,"4 x 2 LDV","km",null,null,{"$f":"IFERROR(IF(E137>0,((F137)*E137),\"Rate Only\"),\"\")","v":"Rate Only"}]
[51]
["TOTAL - carried forward to FINAL SUMMARY",{"$nulls":5},{"$f":"SUM(G15:G138)","v":0}]
[{"$nulls":6},{"$f":"G139","v":0}]

{"sheet":"ALTERATIONS","index":4,"n_rows":22,"n_cols":7,"rows_kept":22,"merged":[[0,0,3,1],[0,2,0,6],[1,2,1,6],[2,2,3,6]]}
[null,null,"ESKOM NTCSA"]
[null,null,"ESSELEN-88KV EMERGENCY BYPASS"]
[null,null,"ESSELEN SUBSTATION"]
[]
["ITEM","REFERENCE","DESCRIPTION","UNIT","QTY","RATE","AMOUNT"]
[]
[null,null,"SECTION NO. 2"]
[]
[null,null,"ALTERATIONS"]
[]
[null,null,"BILL NO. 1"]
[]
[null,null,"MODIFICATION OF EXISTING WORK"]
[]
[null,null,"STRUCTURAL STEELWORK"]
[]
[null,null,"Modification of steel supports"]
[]
[1,null,"Reduce 6m high PI supports (0.54/5573) already erected on site by 500mm for the clearance under the 275kV line in accordance with drawing 0.18/33561","No.",8,null,{"$f":"E19*F19","v":0}]
[]
[{"$nulls":6},{"$f":"SUM(G19:G20)","v":0}]
[null,null,"TOTAL - carried forward to FINAL SUMMARY",{"$nulls":3},{"$f":"G21","v":0}]

{"sheet":"EARTHWORKS","index":5,"n_rows":61,"n_cols":7,"rows_kept":61,"merged":[[0,0,3,1],[0,2,0,6],[1,2,1,6],[2,2,3,6]]}
[null,null,"ESKOM NTCSA"]
[null,null,"ESSELEN-88KV EMERGENCY BYPASS"]
[null,null,"ESSELEN SUBSTATION"]
[]
["ITEM","REFERENCE","DESCRIPTION","UNIT","QTY","RATE","AMOUNT"]
[]
[null,null,"SECTION NO. 3"]
[]
[null,null,"EARTHWORKS (PROVISIONAL)"]
[]
[null,null,"1. Note : The following bills in this section , have been measured according to the \"SABS 1200 System for Measuring Civil Works\" as published by the SABS.  All quantities are provisional and subject to remeasurement during the project."]
[]
[null,null,"2. For pricing purposes all items are to be read in conjunction with the tender drawings. No additional compensation will be made for any information shown on the drawings but not mentioned in the Bills of Quantities - the drawings take precedence over the Bills of Quantities."]
[null,null,"3. All 'Imported Material' for earthworks will be obtained from a commercial source, as selected by the contractor and shall be regarded as freehaul. "]
[null,null,"4. All surplus excavated material is to be disposed of at a registered, designated dumping site, as selected by the Contractor, which cost is to include for all sundry charges, royalties, etc."]
[]
[null,null,"5. All cut and fill materials will be regarded as freehaul, ie. haulage, loading and offloading of material shall be included in the rates submitted by the Contractor - NO additional compensation whatsoever shall be entertained, or additional monies paid in this regard."]
[]
[null,"SABS 1200C","SITE CLEARANCE"]
[]
[1,"8.2.6","Clear hedge or fence (or both) where not scheduled separately:"]
[]
[2,"8.2.6","Supply and install baricading (Shark Net) around the working area, compliant to Eskom safety requirements","m",100,null,{"$f":"E23*F23","v":0}]
[]
[null,null,"EARTHWORKS"]
[]
[null,"SABS 1200DA 8.3.1","Excavation:"]
[]
[3,"DA 8.3.1a","Dig up and remove rubbish, debris, vegetation and shrubs","m²",{"v":69.71,"d":"70"},null,{"$f":"E29*F29","v":0}]
[]
[4,"DA 8.3.1b","Remove top soil to nominal depth of 150mm, stockpile and maintain","m²",70,null,{"$f":"E31*F31","v":0}]
[]
[5,"SABS 1200DA 8.3.1b","Excavate in all materials and use for backfill or embarkment as ordered","m³",99,null,{"$f":"E33*F33","v":0}]
[]
[null,"SABS 1200D.8.3.2b","Extra-over for:"]
[]
[6,"SABS 1200D.8.3.2b.1","Intermediate excavation.","m³",26,null,{"$f":"E37*F37","v":0}]
[]
[7,"SABS 1200D.8.3.2b.2","Hard rock excavation.","m³",26,null,{"$f":"E39*F39","v":0}]
[]
[null,"SABS 1200","Soil Poisoning"]
[]
[8,"SABS 1200DA 8.3.7","Approved weedkiller Supplied and  applied in strict accordance to the manufacturer's instructions","m²",150,null,{"$f":"E43*F43","v":0}]
[]
[]
[null,"SABS 1200D.8.3.4","Importing of materials from commercial sources (Provisional)"]
[]
[9,"SABS 1200D 8.3.4","G6 Material from commercial sources in accordance with SABS 1200 DM compacted to 95% Mod AAASHTO density to be approved by Engineer","m³",108,null,{"$f":"E48*F48","v":0}]
[]
[null,"SABS 1200D.8.3.1","Pitching of surfaces (Provisional)"]
[]
[10,"SABS 1200D.8.3.1.2","Supply, delivery, spreading and levelling of 20mm river sand bedding material to specified thickness, including compaction and moisture conditioning as required.","m²",200,null,{"$f":"E52*F52","v":0}]
[]
[11,null,"Supply and lay 80mm class 25 type sa concrete interlocking paving blocks in herringbone pattern","m²",170,null,{"$f":"E54*F54","v":0}]
[]
[null,"SABS 1200C.8.2.9","Rubble disposal:"]
[]
[12,"8.2.9","Transport all rubble from demolitions and the works to a nearby registered dumping site","m³",{"v":1000,"d":"1,000"},null,{"$f":"E58*F58","v":0}]
[]
[{"$nulls":6},{"$f":"SUM(G23:G59)","v":0}]
[null,null,"TOTAL - CARRIED FORWARD TO SECTION SUMMARY",{"$nulls":3},{"$f":"G60","v":0}]

{"sheet":"CONCRETE","index":6,"n_rows":50,"n_cols":7,"rows_kept":50,"merged":[[0,0,3,1],[0,2,0,6],[1,2,1,6],[2,2,3,6],[26,8,26,9]]}
[null,null,"ESKOM NTCSA"]
[null,null,"ESSELEN-88KV EMERGENCY BYPASS"]
[null,null,"ESSELEN SUBSTATION"]
[]
["ITEM","REFERENCE","DESCRIPTION","UNIT","QTY","RATE","AMOUNT"]
[]
[null,null,"SECTION NO. 3"]
[]
[null,"SABS 1200GA","Supply and installation of  CONCRETE, FORMWORK AND REINFORCEMENT (SMALL WORKS)"]
[]
[null,"8.2","FORMWORK  "]
[]
[null,"8.2.2","Smooth:  "]
[]
[1,"8.2.2","Sides of bases, stub columns.  ","m²",44,null,{"$f":"E15*F15","v":0}]
[]
[null,"8.2.4","Special off-form:  "]
[]
[2,"8.2.4","Form 20 x 20mm chamfer along top edge of exposed stub column or base.  ","m²",17,null,{"$f":"E19*F19","v":0}]
[]
[null,"SABS 1200G.8.3","Reinforcement:"]
[]
[3,"8.3.1","High tensile steel bars:"]
[]
[4,"8.3.1","12mm","t",0.592,null,{"$f":"E25*F25","v":0}]
[]
[5,"8.3.1d","16mm","t",0.715,null,{"$f":"E27*F27","v":0}]
[]
[6,"8.3.1d","20mm","t",0.633,null,{"$f":"E29*F29","v":0}]
[]
[null,"8.3.1","Mild steel bars:"]
[]
[7,"8.3.1","8mm","t",{"v":0.21,"d":"0.210"},null,{"$f":"E33*F33","v":0}]
[]
[null,"SABS 1200G.8.4","Concrete (Structural):"]
[]
[null,"8.4.2","Blinding layer in 15MPa/ 19mm concrete:  "]
[]
[8,"8.4.2","Supply & lay Blinding layer 50mm minimum thick","m²",47,null,{"$f":"E39*F39","v":0}]
[]
[null,"8.4.3","Strength concrete, 25MPa/19mm in:"]
[]
[9,"8.4.3","Bases and stubs columns","m³",34,null,{"$f":"E43*F43","v":0}]
[]
[null,"8.4.4","Unformed surface finishes:  "]
[]
[11,"8.4.4a","Wood - floated finish.","m²",47,null,{"$f":"E47*F47","v":0}]
[]
[{"$nulls":6},{"$f":"SUM(G15:G48)","v":0}]
[null,null,"TOTAL - carried forward to SECTION SUMMARY",{"$nulls":3},{"$f":"G49","v":0}]

{"sheet":"EARTHMAT","index":7,"n_rows":29,"n_cols":7,"rows_kept":29,"merged":[[0,0,3,1],[0,2,0,6],[1,2,1,6],[2,2,3,6],[27,0,29,5]]}
[null,null,"ESKOM NTCSA"]
[null,null,"ESSELEN-88KV EMERGENCY BYPASS"]
[null,null,"ESSELEN SUBSTATION"]
[]
["ITEM","REFERENCE","DESCRIPTION","UNIT","QTY","RATE","AMOUNT"]
[]
[null,null,"SECTION NO. 3"]
[]
[null,"SABS 1200D 8.3.14","EARTHMAT (PROVISIONAL)"]
[]
[null,"8.3.14","Supply, deliver and lay copper earthmat equipment earthing, earthing straps, including excavation complete with risks of collapse, bedding, backfill, compaction and testing at depth up to (See earthmat specification). All flat copper to be 50 x 3mm in accordance with BS 1432, picled and annealed black copper ().701kg/m:"]
[]
[null,"SABS 1200E","ELECTRICAL"]
[]
[1,"SABS 1200EE","1 x 10mm Diameter copper at 1.0m deep","m",200,null,{"$f":"E15*F15","v":0}]
[]
[2,8,"50 x 3mm Flat copper laid at 0.15m to 1.0m deep or on top of concrete, including fixing","m",60,null,{"$f":"E17*F17","v":0}]
[]
[3,8,"Clamp connection, 50 x 3mm flat to 2 no. x 10mm diameter rods","No",20,null,{"$f":"E19*F19","v":0}]
[]
[4,8,"Crimp joints, 10mm round to round (Refer sheets C5 to C8)","No",20,null,{"$f":"E21*F21","v":0}]
[]
[]
[null,null,"Sundries"]
[]
[5,"SABS 1200P12","Excavate, search for and locate existing earthmat, including excavations complete with risk of collapse, backfill and compaction","Item",1,null,{"$f":"E26*F26","v":0}]
[]
["TOTAL - carried forward to SECTION SUMMARY",{"$nulls":5},{"$f":"SUM(G15:G27)","v":0}]
[{"$nulls":6},{"$f":"G28","v":0}]

{"sheet":"CABLE TRENCH,DUCTS,RAMPS","index":8,"n_rows":22,"n_cols":8,"rows_kept":22,"merged":[[0,1,3,2],[0,3,0,7],[1,3,1,7],[2,3,3,7]]}
[{"$nulls":3},"ESKOM NTCSA"]
[{"$nulls":3},"ESSELEN-88KV EMERGENCY BYPASS"]
[{"$nulls":3},"ESSELEN SUBSTATION"]
[]
[null,"ITEM","REFERENCE","DESCRIPTION","UNIT","QTY","RATE","AMOUNT"]
[]
[{"$nulls":3},"SECTION NO. 2",""]
[]
[{"$nulls":3},"CABLE TRENCHES, DUCTS, JUNCTIONS AND RAMPS",""]
[]
[{"$nulls":3},"ELECTRICAL INSTALLATION",""]
[]
[{"$nulls":3},"THE FOLLOWING IN CABLE TRENCHES, DUCTS & JUNCTIONS",""]
[null,1,null,"EXCAVATING,Backfilling and consolidation in picable ground","m3",35,null,{"$f":"F14*G14","v":0}]
[null,2,null,"Remove and replace trench covers","No",200,null,{"$f":"F15*G15","v":0}]
[null,3,null,"Supply of cable trench covers","No",35,null,{"$f":"F16*G16","v":0}]
[null,4,null," Construct cable trench complete as per drawing 0.18/17324 (Sheet 4 Rev. 2 and 0.54-390)","m",35,null,{"$f":"F17*G17","v":0}]
[]
[null,5,null,"Supply & Install 160mm diameter PVC cable sleeves as per drawing 0.18-17324 (Sheet 4 Rev 2)","m",16,null,{"$f":"F19*G19","v":0}]
[]
[{"$nulls":7},{"$f":"SUM(H14:H20)","v":0}]
[{"$nulls":3},"TOTAL - carried forward to SECTION SUMMARY",{"$nulls":3},{"$f":"H21","v":0}]

{"sheet":"STRUCTURAL STEEL","index":9,"n_rows":37,"n_cols":7,"rows_kept":37,"merged":[[0,0,3,1],[0,2,0,6],[1,2,1,6],[2,2,3,6],[35,0,37,5]]}
[null,null,"ESKOM NTCSA"]
[null,null,"ESSELEN-88KV EMERGENCY BYPASS"]
[null,null,"ESSELEN SUBSTATION"]
[]
["ITEM","REFERENCE","DESCRIPTION","UNIT","QTY","RATE","AMOUNT"]
[]
[null,null,"SECTION. NO. 3"]
[]
[null,null,"STRUCTURAL STEELWORK"]
[]
[null,null,"Notes to Tenderers:  "]
[]
[null,null,"The Tenderer is to allow in the pricing of structural steelwork for all steelwork to be erected plumb and to include for ALL necessary steel packing pieces to achieve same."]
[]
[]
[null,"SABS 1200H","STRUCTURAL STEELWORK  "]
[]
[null,"SABS 1200H.8.3.3","Supply,Deliver & Erection of steel on site :"]
[]
[1,null,"Structural steelwork.","t",1.87,null,{"$f":"E20*F20","v":0}]
[]
[null,"SABS 1200H.8.3.4","Erection of bolts:  "]
[]
[null,"8.3.4","Supply,Deliver & Erection bolts (Provisional)"]
[]
[2,null,"Supply, deliver to site and install galvanized high strength friction grip bolts (Grade 8.8), including nut, hardened steel washer, load indicating washer, taper washer where needed and sheradised.  ","t",0.11,null,{"$f":"E26*F26","v":0}]
[]
[null,"SABS 1200H.8.3.6","Holding down bolts:  "]
[]
[3,null,"Supply, deliver to site and install galvanized high strength friction U-shaped holding down bolt (Grade 8.8), including nut, hardened steel washer, load indicating washer, taper washer where needed and sheradised.  ","t",0.11,null,{"$f":"E30*F30","v":0}]
[]
[null,"SABS 1200HA 8.3.1","Erection of steel fence o site:  "]
[]
[4,"8.3.1","Supply,deliver and Install new 1.8m high galvanised diamond mesh \"security fence\" complete including excavations, backfilling, disposing of surplus material, concrete, formwork, etc. all as per detail drawing no. 0.54/4963 (Sheets 1 to 4)","m",60,null,{"$f":"E34*F34","v":0}]
[]
["TOTAL - carried forward to SECTION SUMMARY",{"$nulls":5},{"$f":"SUM(G20:G35)","v":0}]
[{"$nulls":6},{"$f":"G36","v":0}]

{"sheet":"PRIMARY PLANT","index":10,"n_rows":42,"n_cols":7,"rows_kept":42,"merged":[[0,0,3,1],[0,2,0,6],[1,2,1,6],[2,2,3,6],[41,0,41,5]]}
[null,null,"ESKOM NTCSA"]
[null,null,"ESSELEN-88KV EMERGENCY BYPASS"]
[null,null,"ESSELEN SUBSTATION"]
[]
["ITEM","REF","DESCRIPTION","UNIT","QTY","RATE","AMOUNT"]
[]
[]
[null,null,"SUPPLY & DELIVERYOF EQUIPMENT",""]
[]
[null,null,"SCHEDULE 1"]
[]
[null,null,"PRIMARY PLANT EQUIPMENT",""]
[]
[]
[1,null,"Supply & Delivery of 132kV bypass isolator","No",1,null,{"$f":"E15*F15","v":0}]
[]
[{"$f":"A15+1","v":2},null,"Supply  & Delivery of  275kV bypass isolator","No",1,null,{"$f":"E17*F17","v":0}]
[]
[{"$f":"A17+1","v":3},null,"supply & Delivery of 132kV Post Insulator (c10-550,25mm/kv Top PCD=226,Bottom PCD=225)","No",9,null,{"$f":"E19*F19","v":0}]
[]
[4,null,"Supply & Delivery 132KV Post i=Insulator,c4-550 25mm/kv Top/Bottom PCD=225","No.",15,null,{"$f":"E21*F21","v":0}]
[]
[5,null,"Supply & Delivery of 275kV Post Insulator","No",12,null,{"$f":"E23*F23","v":0}]
[]
[6,null,"Supply & Delivery of 88KV Polymeric Longrod,120KN,25mm/KV","No",57,null,{"$f":"E25*F25","v":0}]
[null,null,"SUBTOTAL SUPPLY OF PRIMARY PLANT",{"$nulls":3},{"$f":"SUM(G15:G25)","v":0}]
[]
[null,null,"ERECTION OF EQUIPMENT"]
[]
[]
[1,null,"Install 132kV bypass isolator","No",1,null,{"$f":"E31*F31","v":0}]
[]
[{"$f":"A31+1","v":2},null,"Install 275kV bypass isolator","No",1,null,{"$f":"E33*F33","v":0}]
[]
[{"$f":"A33+1","v":3},null,"Install 132kV Post Insulator (c10-550,25mm/kv Top PCD=226,Bottom PCD=225)","No",9,null,{"$f":"E35*F35","v":0}]
[4,null,"132KV Post i=Insulator,c4-550 25mm/kv Top/Bottom PCD=225","No.",15,null,{"$f":"E36*F36","v":0}]
[]
[5,null,"Install 275kV Post Insulator","No",12,null,{"$f":"E38*F38","v":0}]
[]
[6,null,"88KV Polymeric Longrod,120KN,25mm/KV","No.",57,null,{"$f":"E40*F40","v":0}]
[null,null,"SUBTOTAL ERECTION OF PRIMARY PLANT",{"$nulls":3},{"$f":"SUM(G31:G40)","v":0}]
["TOTAL - carried forward to SECTION SUMMARY",{"$nulls":5},{"$f":"G26+G41","v":0}]

{"sheet":"TUBULAR BUSBAR","index":11,"n_rows":118,"n_cols":6,"rows_kept":118,"merged":[[0,0,3,1],[0,2,0,5],[1,2,1,5],[2,2,3,5]]}
[null,null,"ESKOM NTCSA"]
[null,null,"ESSELEN-88KV EMERGENCY BYPASS"]
[null,null,"ESSELEN SUBSTATION"]
[]
["ITEM","DESCRIPTION","UNIT","QTY","RATE","AMOUNT"]
[]
[null,"88 kV TUBULAR BUSBARS"]
[]
[null,"The quantities inserted below are provisional and are based on best information available at the time of compiling these Bills of Quantities and as such, the works shall be subject to remeasurement."]
[]
[null,"SCHEDULE A"]
[]
[1,"SUPPLY & DELIVERY OF TUBULAR BUSBAR CLAMPS AND END CAPS"]
[]
["1.1","Clamp tube : ECC-PI-F-J;200/200/225;fix","No",10,null,{"$f":"D15*E15","v":0}]
[]
["1.2","Clamp,tube:ECC-PI-S-J;200/200/225;SLIDE","No",2,null,{"$f":"D17*E17","v":0}]
[]
["1.3","CLAMP,TUBE:ECC-PI-S-L;200/200/127;SLIDE","No",6,null,{"$f":"D19*E19","v":0}]
[]
["1.4","CLAMP,TUBE:ESC-PI-F-J;200/127;FIXED","No",3,null,{"$f":"D21*E21","v":0}]
[]
["1.5","CLAMP,TUBE:ETP-IL2-AB;200/2X38.3;45DEG","No",9,null,0]
[]
["1.6","CLAMP,TUBE:ETP-TW2-AB;200/2X38.3;45DEG","No",3,null,0]
[]
["1.7","CLAMP,TUBE:ETEC-CF-F;RED;200;CF-ENDCAP","No",4,null,0]
[]
["1.8","CLAMP,TUBE:ETEC-CF-F;RED;200;CF-ENDCAP","No",4,null,0]
[]
["1.9","CLAMP,TUBE:ETEC-CF-F;RED;200;CF-ENDCAP","No",4,null,0]
[]
["1.10","CLAMP,TUBE:ETEC-DC-F;200/6R;26.5C-ENDCAP","No",6,null,0]
[]
["1.11","CLAMP,TUBE:ETEC-DC-F;200/6W;26.5C-ENDCAP","No",6,null,0]
[]
["1.12","CLAMP,TUBE:ETEC-DC-F;200/6B;26.5C-ENDCAP","No",6,null,0]
[]
["1.13","clamp,tube:ETEC-DC-G;200/6;38.3C-ENDCAP","No",6,null,0]
[null,"Subtotal-Supply and Deliver Tubular busbar clamps and end caps",{"$nulls":3},{"$f":"SUM(F15:F39)","v":0}]
[]
[2," INSTALL TUBULAR BUSBAR CLAMPS AND END CAPS"]
[]
["2.1","Clamp tube : ECC-PI-F-J;200/200/225;fix","No",10,null,{"$f":"D44*E44","v":0}]
[]
["2.2","Clamp,tube:ECC-PI-S-J;200/200/225;SLIDE","No",2,null,{"$f":"D46*E46","v":0}]
[]
["2.3","CLAMP,TUBE:ECC-PI-S-L;200/200/127;SLIDE","No",6,null,{"$f":"D48*E48","v":0}]
[]
["2.4","CLAMP,TUBE:ESC-PI-F-J;200/127;FIXED","No",3,null,{"$f":"D50*E50","v":0}]
[]
["2.5","CLAMP,TUBE:ETP-IL2-AB;200/2X38.3;45DEG","No",9,null,0]
[]
["2.6","CLAMP,TUBE:ETP-TW2-AB;200/2X38.3;45DEG","No",3,null,0]
[]
["2.7","CLAMP,TUBE:ETEC-CF-F;RED;200;CF-ENDCAP","No",4,null,0]
[]
["2.8","CLAMP,TUBE:ETEC-CF-F;RED;200;CF-ENDCAP","No",4,null,0]
[]
["2.9","CLAMP,TUBE:ETEC-CF-F;RED;200;CF-ENDCAP","No",4,null,0]
[]
["2.10","CLAMP,TUBE:ETEC-DC-F;200/6R;26.5C-ENDCAP","No",6,null,0]
[]
["2.11","CLAMP,TUBE:ETEC-DC-F;200/6W;26.5C-ENDCAP","No",6,null,0]
[]
["2.12","CLAMP,TUBE:ETEC-DC-F;200/6B;26.5C-ENDCAP","No",6,null,0]
[]
["2.13","clamp,tube:ETEC-DC-G;200/6;38.3C-ENDCAP","No",6,null,0]
[null,"Subtotal-Installation of Tubular Clamps and end caps",{"$nulls":3},{"$f":"SUM(F44:F68)","v":0}]
[]
[]
[null,"TUBES"]
[]
[3,"SUPPLY AND DELIVER 200 DIA X 6WT BUSBAR TUBES"]
[]
["3.1","5m tube","No",3,null,{"$f":"D76*E76","v":0}]
[]
["3.2","4.5m tube","No",1,null,{"$f":"D78*E78","v":0}]
[]
["3.3","8m tube","No",1,null,0]
[]
["3.4","11.6m tube","No",1,null,0]
[]
["3.5","18.1m tube","No",1,null,0]
[]
["3.6","19.6m tube","No",1,null,0]
[]
["3.7","20.6m tube","No",1,null,0]
[null,"Subtotal for supply and delivery of 200 DIAX6WT Busbat Tubes",{"$nulls":3},{"$f":"SUM(F76:F88)","v":0}]
[]
[4,"INSTALLATION OF  200 DIA X 6WT BUSBAR TUBES"]
[]
["4.1","5m tube","No",3,null,{"$f":"D93*E93","v":0}]
[]
["4.2","4.5m tube","No",1,null,{"$f":"D95*E95","v":0}]
[]
["4.3","8m tube","No",1,null,0]
[]
["4.4","11.6m tube","No",1,null,0]
[]
["4.5","18.1m tube","No",1,null,0]
[]
["4.6","19.6m tube","No",1,null,0]
[]
["4.7","20.6m tube","No",1,null,0]
[null,"Subtotal for installation of 200 DIAX6WT Busbar tubes",{"$nulls":3},{"$f":"SUM(F93:F105)","v":0}]
[]
[]
[6,"CONDUCTORS"]
[]
["6.1","Install 61/4,26 mm AL (38,3 mm Dia) Bull conductor","m",1500,null,{"$f":"D111*E111","v":0}]
[]
["6.2","Install  Centipede  37/3,78 mm AL (26,5 mm Dia)","No",500,null,{"$f":"D113*E113","v":0}]
[]
["6.3"," Install Hare conductor 6/4,72 mm AL ¼,72 mm ST (14,16 Dia)","No",300,null,0]
[null,"Subtotal-Conductors-supply and install",{"$nulls":3},{"$f":"SUM(F111:F115)","v":0}]
[]
[null,"TOTALTUBULAR BUSBARS - CARRIED FORWARD TO FINAL SUMMARY",{"$nulls":3},{"$f":"F40+F69+F89+F106+F116","v":0}]

{"sheet":"CLAMPS,CONDUCTORS,HARDWARE","index":12,"n_rows":141,"n_cols":6,"rows_kept":141,"merged":[[0,0,3,1],[0,2,0,5],[1,2,1,5],[2,2,3,5]]}
[null,null,"ESKOM NTCSA"]
[null,null,"ESSELEN-88KV EMERGENCY BYPASS"]
[null,null,"ESSELEN SUBSTATION"]
[]
["ITEM","DESCRIPTION","UNIT","QTY","RATE","AMOUNT"]
[]
[null,"88 kV TUBULAR BUSBARS"]
[]
[null,"The quantities inserted below are provisional and are based on best information available at the time of compiling these Bills of Quantities and as such, the works shall be subject to remeasurement."]
[]
[null,"SCHEDULE A"]
[]
[1,"SUPPLY & DELIVERY OF CLAMPS & CONDUCTORS"]
[]
["1.1","CLAMP:EX-B;BOLT/BOLT; STEM 26 COND 26.5","No",3,null,{"$f":"D15*E15","v":0}]
[]
["1.2","CLAMP:EX-K;BOLT/BOLT; STEM 26 COND 21","No",10,null,{"$f":"D17*E17","v":0}]
[]
["1.3","CLAMP:EUT-C;BOLT-TEE;12-21 MM;22-28 MM","No",12,null,{"$f":"D19*E19","v":0}]
[]
["1.4","CLAMP:ETC-B;T/COMP;23.5 MM;38.3 MM","No",18,null,{"$f":"D21*E21","v":0}]
[]
["1.5","CLAMP:ETC-C;T/COMP;26.5 MM;26.5 MM","No",6,null,0]
[]
["1.6","CLAMP:ETC-D;T/COMP;26.5 MM;38.3 MM","No",6,null,0]
[]
["1.7","CLAMP:ETC-E;T/COMP;28.6 MM;26.5 MM","No",18,null,0]
[]
["1.8","CLAMP:ETC-F;T/COMP;28.6 MM;38.3 MM","No",18,null,0]
[]
["1.9","CLAMP:ETC-J;T/COMP;38.3 MM;26.5 MM","No",3,null,0]
[]
["1.10","CLAMP:ETC-K;T/COMP;38.3 MM;38.3 MM","No",120,null,0]
[]
["1.11","CLAMP:EYC-D;2X38.3 COMP 38 BOLTED 45DG","No",24,null,0]
[]
["1.12","CLAMP:EYC-R;COMP/PALM ODG;2X38.3 MM","No",6,null,0]
[]
["1.13","CLAMP:EYC-S;COMP/PALM 45DG;2X38.3 MM","No",6,null,0]
[]
[1.14,"SPACER:ES-B;COND 2X38.3MM;150MM CRS","No",388,null,0]
[]
[1.15,"CLAMP, STUD PALM BOLT 26.5mm EXP-A","No",3,null,0]
[null,"Subtotal-Supply and Deliver Tubular busbar clamps and end caps",{"$nulls":3},{"$f":"SUM(F15:F43)","v":0}]
[]
[null," INSTALLATION OF CLAMPS,HARDWARE & CONDUCTORS"]
[]
["2.1","CLAMP:EX-B;BOLT/BOLT; STEM 26 COND 26.5","No",3,null,{"$f":"D48*E48","v":0}]
[]
["2.2","CLAMP:EX-K;BOLT/BOLT; STEM 26 COND 21","No",10,null,{"$f":"D50*E50","v":0}]
[]
["2.3","CLAMP:EUT-C;BOLT-TEE;12-21 MM;22-28 MM","No",12,null,{"$f":"D52*E52","v":0}]
[]
["2.4","CLAMP:ETC-B;T/COMP;23.5 MM;38.3 MM","No",18,null,{"$f":"D54*E54","v":0}]
[]
["2.5","CLAMP:ETC-C;T/COMP;26.5 MM;26.5 MM","No",6,null,0]
[]
["2.6","CLAMP:ETC-D;T/COMP;26.5 MM;38.3 MM","No",6,null,0]
[]
["2.7","CLAMP:ETC-E;T/COMP;28.6 MM;26.5 MM","No",18,null,0]
[]
["2.8","CLAMP:ETC-F;T/COMP;28.6 MM;38.3 MM","No",18,null,0]
[]
["2.9","CLAMP:ETC-J;T/COMP;38.3 MM;26.5 MM","No",3,null,0]
[]
["2.10","CLAMP:ETC-K;T/COMP;38.3 MM;38.3 MM","No",120,null,0]
[]
["2.11","CLAMP:EYC-D;2X38.3 COMP 38 BOLTED 45DG","No",24,null,0]
[]
["2.12","CLAMP:EYC-R;COMP/PALM ODG;2X38.3 MM","No",6,null,0]
[]
["2.13","CLAMP:EYC-S;COMP/PALM 45DG;2X38.3 MM","No",6,null,0]
[]
[2.14,"SPACER:ES-B;COND 2X38.3MM;150MM CRS","No",388,null,0]
[]
[2.15,"CLAMP, STUD PALM BOLT 26.5mm EXP-A","No",3,null,0]
[]
[2.16,"B44","No",6,null,{"$f":"D78*E78","v":0}]
[]
[2.17,"E42","No",3,null,{"$f":"D80*E80","v":0}]
[]
[2.18,"S-2","No",88,null,{"$f":"D82*E82","v":0}]
[]
[2.19,"TC-9","No",3,null,{"$f":"D84*E84","v":0}]
[]
[2.2,"YC-4","No",18,null,{"$f":"D86*E86","v":0}]
[]
[2.21,"YC-17","No",6,null,{"$f":"D88*E88","v":0}]
[]
[2.22,"Y-7/8","No",6,null,{"$f":"D90*E90","v":0}]
[]
[2.23,"TC-10","No",36,null,{"$f":"D92*E92","v":0}]
[]
[2.24,"K-2","No",3,null,{"$f":"D94*E94","v":0}]
[]
[2.25,"Strain clamp ( STA30/40)","No",12,null,{"$f":"D96*E96","v":0}]
[]
[2.26,"Suspension clamp (SPA30/40)","No",6,null,{"$f":"D98*E98","v":0}]
[null,"Subtotal-Installation of Tubular Clamps and end caps",{"$nulls":3},{"$f":"SUM(F48:F98)","v":0}]
[]
[]
[null,"HARDWARE"]
[]
[3,"SUPPLY AND DELIVERY OF HARDWARE"]
[]
["3.1","EW1 (10-21,5 mm )","No",30,null,{"$f":"D106*E106","v":0}]
[]
["3.2","A40 ( 26 mm Single Conductor )","No",6,null,{"$f":"D108*E108","v":0}]
[]
["3.3","B44 ( 38 x 150 mm Twin Conductor )","No",48,null,0]
[]
["3.4","E42 ( 38 x 150 mm Twin Conductor )","No",18,null,0]
[]
["3.5","TCT-120/38 ( Twisted Clevis Tongue )","No",30,null,0]
[]
["3.6","TTOE-120 ( Twisted Tongue )","No",30,null,0]
[]
["3.7","SHB/T-120 (Twisted Shackle )","No",4,null,0]
[]
[3.8,"2PG/E-Bi ( PG Clamp )","No",20,null,0]
[null,"Subtotal for supply and delivery of 200 DIAX6WT Busbat Tubes",{"$nulls":3},{"$f":"SUM(F106:F120)","v":0}]
[]
[4,"INSTALLATION OF  HARDWARE"]
[]
["4.1","EW1 (10-21,5 mm )","No",30,null,{"$f":"D125*E125","v":0}]
[]
["4.2","A40 ( 26 mm Single Conductor )","No",6,null,{"$f":"D127*E127","v":0}]
[]
["4.3","B44 ( 38 x 150 mm Twin Conductor )","No",48,null,0]
[]
["4.4","E42 ( 38 x 150 mm Twin Conductor )","No",18,null,0]
[]
["4.5","TCT-120/38 ( Twisted Clevis Tongue )","No",30,null,0]
[]
["4.6","TTOE-120 ( Twisted Tongue )","No",30,null,0]
[]
["4.7","SHB/T-120 (Twisted Shackle )","No",4,null,0]
[]
[4.8,"2PG/E-Bi ( PG Clamp )","No",20,null,0]
[null,"Subtotal for installation of 200 DIAX6WT Busbar tubes",{"$nulls":3},{"$f":"SUM(F125:F139)","v":0}]
[null,"TOTAL CLAMPS,CONDUCTORS,HARDWARE & CABLES - CARRIED FORWARD TO FINAL SUMMARY",{"$nulls":3},{"$f":"F44+F99+F121+F140","v":0}]

{"sheet":"CABLING","index":13,"n_rows":23,"n_cols":6,"rows_kept":23,"merged":[[3,0,3,5],[4,0,5,0],[4,1,5,1],[4,2,5,2],[4,3,5,3],[4,4,5,4],[4,5,5,5],[22,1,22,4]]}
["ESKOM-NTCSA"]
["ESSELEN EMERGENCY BYPASS"]
["ESSELEN SUBSTATION"]
[]
["ITEM","DESCRIPTION","UNIT","QUANTITY","RATE","AMOUNT"]
[]
[null,"CABLING"]
[null," CABLING - DISCONNECTING, REMOVAL, INSTALLATION AND TERMINATIONS"]
[null,"Note to tenderer: cables to be supplied by Eskom, the contractor to supply the glanding."]
[null,"Note: The rate price for terminating must include for all activities and items as specified in cabling and earthing specification (i.e. earthling of spare cores)."]
[]
[null,"88kV FEEDER 11 - SAR MODDER 2 TEE"]
[]
["1","BVX 2 ECV   (Installing and testing new cable)","M",250,null,{"$f":"D14*E14","v":0}]
["2","BVX 2 ECV   (gland supply)","No",2,null,0]
["3","BVX 2 ECV (Termination)","No",2,null,0]
[]
[null,"275kV FEEDER 4-APOLLO 2"]
[]
["1","BVX 4 ECV (Installing and testing new cable)","M",250,null,0]
["2","BVX  4 ECV  (gland supply)","No",2,null,0]
["3","BVX 4 ECV  (Termination)","No",2,null,0]
[null,"TOTAL CABLING-CARRIED FORWARD TO FINAL SUMMARY",{"$nulls":3},{"$f":"SUM(F14:F22)","v":0}]